lending/lending_fUSD_20250719
["ID","MTS","AMOUNT","RATE_DAILY","PERIOD"]
[373237535,1752919880047,-480.0,0.00020821,2]
[373237536,1752919880056,-2233.87,0.00020821,2]
[373237537,1752919880065,-851.61,0.00020821,2]
[373237538,1752919880075,-718.81,0.00020821,2]
[373237539,1752919880085,-480.0,0.00020821,2]
[373237540,1752919880094,-1358.36,0.00020821,2]
[373237541,1752919880103,-1477.64,0.00020821,2]
[373237542,1752919880113,-646.65,0.00020821,2]
[373237543,1752919880123,-480.0,0.00020821,2]
[373237544,1752919880133,-482.5,0.00020821,2]
[373237545,1752919880142,-480.0,0.00020821,2]
[373237546,1752919880152,-1030.46,0.00020821,2]
[373237547,1752919880161,-602.24,0.00020821,2]
[373237548,1752919880170,-480.0,0.00020821,2]
[373237549,1752919880180,-480.0,0.00020821,2]
[373237550,1752919880189,-480.0,0.00020821,2]
[373237551,1752919880199,-1659.56,0.00020821,2]
[373237552,1752919880209,-658.15,0.00020821,2]
[373237553,1752919880218,-480.0,0.00020821,2]
[373237554,1752919880228,-480.0,0.00020821,2]
[373237555,1752919880238,-676.84,0.00020821,2]
[373237556,1752919880248,-169.192244,0.00020821,2]
[373237557,1752919880259,-480.0,0.00020821,2]
[373237558,1752919880269,-1120.43,0.00020821,2]
[373237559,1752919880279,-837.04,0.00020821,2]
[373237560,1752919880289,-1947.23,0.00020821,2]
[373237561,1752919880299,-1479.44,0.00020821,2]
[373237562,1752919880309,-480.0,0.00020821,2]
[373237563,1752919880319,-1104.98,0.00020821,2]
[373237564,1752919880329,-1240.19,0.00020821,2]
[373237565,1752919880339,-1213.06,0.00020821,2]
[373237566,1752919880350,-480.0,0.00020821,2]
[373237567,1752919880360,-1325.85,0.00020821,2]
[373237568,1752919880370,-495.17,0.00020821,2]
[373237569,1752919880379,-602.67,0.00020821,2]
[373237570,1752919880390,-1656.17,0.00020821,2]
[373237571,1752919880399,-480.0,0.00020821,2]
[373237572,1752919880409,-2682.58,0.00020821,2]
[373237573,1752919880419,-955.39,0.00020821,2]
[373237574,1752919880430,-2820.87,0.00020821,2]
[373237575,1752919880440,-824.58,0.00020821,2]
[373237576,1752919880450,-1507.25,0.00020821,2]
[373237577,1752919880460,-1304.87,0.00020821,2]
[373237578,1752919880470,-1820.5,0.00020821,2]
[373237579,1752919880480,-1009.35,0.00020821,2]
[373237580,1752919880490,-1085.77,0.00020821,2]
[373237581,1752919880500,-677.53,0.00020821,2]
[373237582,1752919880510,-621.85,0.00020821,2]
[373237583,1752919880519,-578.45,0.00020821,2]
[373237584,1752919880529,-506.06,0.00020821,2]
[373237585,1752919880539,-1106.32,0.00020821,2]
[373237586,1752919880549,-1288.84,0.00020821,2]
[373237587,1752919880559,-505.94,0.00020821,2]
[373237588,1752919880569,-518.09,0.00020821,2]
[373237589,1752919880579,-1483.96,0.00020821,2]
[373237590,1752919880589,-480.0,0.00020821,2]
[373237591,1752919880598,-480.0,0.00020821,2]
[373237592,1752919880608,-480.0,0.00020821,2]
[373237593,1752919880618,-892.94,0.00020821,2]
[373237594,1752919880627,-781.22,0.00020821,2]
[373237595,1752919880637,-1122.99,0.00020821,2]
[373237596,1752919880647,-699.81,0.00020821,2]
[373237597,1752919880656,-480.0,0.00020821,2]
[373237598,1752919880666,-480.0,0.00020821,2]
[373237599,1752919880676,-2398.3,0.00020821,2]
[373237600,1752919880686,-480.0,0.00020821,2]
[373237601,1752919880696,-1143.42,0.00020821,2]
[373237602,1752919880706,-480.0,0.00020821,2]
[373237603,1752919880715,-852.18,0.00020821,2]
[373237604,1752919880725,-539.87,0.00020821,2]
[373237605,1752919880735,-1158.1,0.00020821,2]
[373237606,1752919880745,-480.0,0.00020821,2]
[373237607,1752919880754,-502.23,0.00020821,2]
[373237608,1752919880766,-545.06,0.00020821,2]
[373237609,1752919880775,-8079.9,0.00020822,2]
[373237610,1752919880785,-2508.37,0.0002084,2]
[373237611,1752919880794,-1126.02765,0.0002085,2]
[373237612,1752919880804,-1000.0,0.00020859,2]
[373237613,1752919880813,-203.0,0.0002086,2]
[373237614,1752919880823,-207.0,0.0002086,2]
[373237615,1752919880834,-212.0,0.0002086,2]
[373237616,1752919880844,-1000.0,0.00020874,2]
[373237617,1752919880854,-4053.34,0.000209,2]
[373237618,1752919880865,-500.0,0.0002091,2]
[373237619,1752919880875,-501.07918319,0.0002091,2]
[373237620,1752919880885,-500.0,0.0002091,2]
[373237621,1752919880896,-150.0,0.00020913,2]
[373237622,1752919880906,-150.0,0.00020918,2]
[373237623,1752919880917,-223.0315306,0.0002092,2]
[373237624,1752919880928,-500.0,0.00020921,2]
[373237625,1752919880938,-518.65,0.00020931,2]
[373237626,1752919880948,-3225.72,0.00020931,2]
[373237627,1752919880958,-929.65,0.00020931,2]
[373237628,1752919880968,-546.84,0.00020931,2]
[373237629,1752919880979,-3351.16,0.00020931,2]
[373237630,1752919880990,-3462.2,0.00020931,2]
[373237631,1752919881000,-290.12133978,0.00020931,2]
[373237632,1752919881011,-3220.57,0.00020931,2]
[373237633,1752919881021,-877.62,0.00020931,2]
[373237634,1752919881030,-522.59,0.00020931,2]
[373237635,1752919881040,-611.8,0.00020931,2]
[373237636,1752919881049,-992.53,0.00020931,2]
[373237637,1752919881059,-685.01,0.00020931,2]
[373237638,1752919881276,-588.9,0.00020931,2]
[373237639,1752919881286,-480.0,0.00020931,2]
[373237640,1752919881296,-2233.87,0.00020931,2]
[373237641,1752919881307,-851.61,0.00020931,2]
[373237642,1752919881318,-718.81,0.00020931,2]
[373237643,1752919881328,-480.0,0.00020931,2]
[373237644,1752919881338,-1358.36,0.00020931,2]
[373237645,1752919881348,-1477.64,0.00020931,2]
[373237646,1752919881358,-646.65,0.00020931,2]
[373237647,1752919881369,-480.0,0.00020931,2]
[373237648,1752919881379,-482.5,0.00020931,2]
[373237649,1752919881390,-516.58380876,0.00020931,2]
[373237650,1752919881401,-1030.46,0.00020931,2]
[373237651,1752919881411,-602.24,0.00020931,2]
[373237652,1752919881422,-480.0,0.00020931,2]
[373237653,1752919881432,-480.0,0.00020931,2]
[373237654,1752919881443,-480.0,0.00020931,2]
[373237655,1752919881453,-658.15,0.00020931,2]
[373237656,1752919881463,-480.0,0.00020931,2]
[373237657,1752919881473,-480.0,0.00020931,2]
[373237658,1752919881483,-676.84,0.00020931,2]
[373237659,1752919881493,-480.0,0.00020931,2]
[373237660,1752919881503,-1120.43,0.00020931,2]
[373237661,1752919881515,-837.04,0.00020931,2]
[373237662,1752919881526,-1947.23,0.00020931,2]
[373237663,1752919881536,-1479.44,0.00020931,2]
[373237664,1752919881546,-480.0,0.00020931,2]
[373237665,1752919881556,-1240.19,0.00020931,2]
[373237666,1752919881566,-1104.98,0.00020931,2]
[373237667,1752919881575,-1213.06,0.00020931,2]
[373237668,1752919881584,-1325.85,0.00020931,2]
[373237669,1752919881594,-480.0,0.00020931,2]
[373237670,1752919881606,-495.17,0.00020931,2]
[373237671,1752919881625,-602.67,0.00020931,2]
[373237672,1752919881634,-1656.17,0.00020931,2]
[373237673,1752919881644,-480.0,0.00020931,2]
[373237674,1752919881654,-2682.58,0.00020931,2]
[373237675,1752919881664,-955.39,0.00020931,2]
[373237676,1752919881675,-2820.87,0.00020931,2]
[373237677,1752919881684,-824.58,0.00020931,2]
[373237678,1752919881694,-1507.25,0.00020931,2]
[373237679,1752919881703,-1304.87,0.00020931,2]
[373237680,1752919881713,-1820.5,0.00020931,2]
[373237681,1752919881723,-1009.35,0.00020931,2]
[373237682,1752919881732,-1085.77,0.00020931,2]
[373237683,1752919881742,-677.53,0.00020931,2]
[373237684,1752919881752,-621.85,0.00020931,2]
[373237685,1752919881762,-578.45,0.00020931,2]
[373237686,1752919881771,-506.06,0.00020931,2]
[373237687,1752919881781,-1106.32,0.00020931,2]
[373237688,1752919881790,-1288.84,0.00020931,2]
[373237689,1752919881799,-505.94,0.00020931,2]
[373237690,1752919881809,-518.09,0.00020931,2]
[373237691,1752919881819,-1483.96,0.00020931,2]
[373237692,1752919881829,-480.0,0.00020931,2]
[373237693,1752919881844,-480.0,0.00020931,2]
[373237694,1752919881854,-480.0,0.00020931,2]
[373237695,1752919881864,-892.94,0.00020931,2]
[373237696,1752919881875,-781.22,0.00020931,2]
[373237697,1752919881885,-1122.99,0.00020931,2]
[373237698,1752919881897,-699.81,0.00020931,2]
[373237699,1752919881907,-421.38,0.00020931,2]
[373237700,1752919881917,-480.0,0.00020931,2]
[373237701,1752919881927,-2398.3,0.00020931,2]
[373237702,1752919881937,-480.0,0.00020931,2]
[373237703,1752919881947,-1143.42,0.00020931,2]
[373237704,1752919881956,-462.87943203,0.00020931,2]
[373237705,1752919881966,-852.18,0.00020931,2]
[373237706,1752919881976,-539.87,0.00020931,2]
[373237707,1752919881986,-1158.1,0.00020931,2]
[373237708,1752919881996,-480.0,0.00020931,2]
[373237709,1752919882006,-502.23,0.00020931,2]
[373237710,1752919882016,-150.0,0.00020971,2]
[373237711,1752919882026,-151.0,0.00020972,2]
[373237712,1752919882036,-267.9,0.00020979,2]
[373237713,1752919882046,-152.0,0.0002099,5]
[373237714,1752919882056,-210.6,0.00021,2]
[373237715,1752919882066,-94790.04878694,0.00021,2]
[373237716,1752919882076,-20000.0,0.00021,2]
[373237717,1752919882086,-24263.45871055,0.00021,7]
[373237718,1752919882096,-1164.69654096,0.00021,2]
[373237719,1752919882105,-192.23041294,0.00021,2]
[373237720,1752919882115,-210.6,0.00021,2]
[373237721,1752919882125,-199.99,0.00021,2]
[373237722,1752919882139,-2578.6685021,0.00021,2]
[373237723,1752919882149,-2000.0,0.00021,2]
[373237724,1752919882159,-298.374402,0.00021,2]
[373237725,1752919882169,-298.374402,0.00021,2]
[373237726,1752919882179,-476.80070012,0.00021,7]
[373237727,1752919882189,-151.0,0.00021,2]
[373237728,1752919882200,-201.604788,0.00021,2]
[373237729,1752919882210,-4000.0,0.00021,4]
[373237730,1752919882221,-226.52842961,0.0002104,2]
[373237731,1752919882231,-518.65,0.00021041,2]
[373237732,1752919882242,-3225.72,0.00021041,2]
[373237733,1752919882256,-929.65,0.00021041,2]
[373237734,1752919882267,-546.84,0.00021041,2]
[373237735,1752919882277,-3351.16,0.00021041,2]
[373237736,1752919882287,-3462.2,0.00021041,2]
[373237737,1752919882297,-3220.57,0.00021041,2]
[373237738,1752919882307,-877.62,0.00021041,2]
[373237739,1752919882318,-522.59,0.00021041,2]
[373237740,1752919882328,-611.8,0.00021041,2]
[373237741,1752919882338,-992.53,0.00021041,2]
[373237742,1752919882347,-685.01,0.00021041,2]
[373237743,1752919882357,-588.9,0.00021041,2]
[373237744,1752919882367,-480.0,0.00021041,2]
[373237745,1752919882377,-2233.87,0.00021041,2]
[373237746,1752919882388,-851.61,0.00021041,2]
[373237747,1752919882399,-718.81,0.00021041,2]
[373237748,1752919882409,-248.15457221,0.00021041,2]
[373237749,1752919882419,-1358.36,0.00021041,2]
[373237750,1752919882429,-1477.64,0.00021041,2]
[373237751,1752919882439,-646.65,0.00021041,2]
[373237752,1752919882449,-480.0,0.00021041,2]
[373237753,1752919882459,-482.5,0.00021041,2]
[373237754,1752919882469,-1030.46,0.00021041,2]
[373237755,1752919882479,-602.24,0.00021041,2]
[373237756,1752919882490,-480.0,0.00021041,2]
[373237757,1752919882501,-480.0,0.00021041,2]
[373237758,1752919882511,-480.0,0.00021041,2]
[373237759,1752919882522,-658.15,0.00021041,2]
[373237760,1752919882532,-480.0,0.00021041,2]
[373237761,1752919882541,-480.0,0.00021041,2]
[373237762,1752919882551,-676.84,0.00021041,2]
[373237763,1752919882561,-480.0,0.00021041,2]
[373237764,1752919882571,-1120.43,0.00021041,2]
[373237765,1752919882581,-837.04,0.00021041,2]
[373237766,1752919882591,-1947.23,0.00021041,2]
[373237767,1752919882601,-1479.44,0.00021041,2]
[373237768,1752919882611,-556.6277094,0.00021041,2]
[373237769,1752919882621,-1240.19,0.00021041,2]
[373237770,1752919882631,-1104.98,0.00021041,2]
[373237771,1752919882640,-1213.06,0.00021041,2]
[373237772,1752919882651,-1325.85,0.00021041,2]
[373237773,1752919882661,-480.0,0.00021041,2]
[373237774,1752919882671,-495.17,0.00021041,2]
[373237775,1752919882681,-602.67,0.00021041,2]
[373237776,1752919882691,-1656.17,0.00021041,2]
[373237777,1752919882701,-480.0,0.00021041,2]
[373237778,1752919882711,-2682.58,0.00021041,2]
[373237779,1752919882721,-955.39,0.00021041,2]
[373237780,1752919882733,-2820.87,0.00021041,2]
[373237781,1752919882744,-824.58,0.00021041,2]
[373237782,1752919882754,-1507.25,0.00021041,2]
[373237783,1752919882765,-1304.87,0.00021041,2]
[373237784,1752919883036,-1820.5,0.00021041,2]
[373237785,1752919883046,-1009.35,0.00021041,2]
[373237786,1752919883056,-1085.77,0.00021041,2]
[373237787,1752919883066,-677.53,0.00021041,2]
[373237788,1752919883075,-621.85,0.00021041,2]
[373237789,1752919883085,-578.45,0.00021041,2]
[373237790,1752919883094,-506.06,0.00021041,2]
[373237791,1752919883103,-1106.32,0.00021041,2]
[373237792,1752919883113,-1288.84,0.00021041,2]
[373237793,1752919883122,-505.94,0.00021041,2]
[373237794,1752919883132,-518.09,0.00021041,2]
[373237795,1752919883141,-1483.96,0.00021041,2]
[373237796,1752919883151,-279.16759298,0.00021041,2]
[373237797,1752919883160,-480.0,0.00021041,2]
[373237798,1752919883170,-420.56718459,0.00021041,2]
[373237799,1752919883179,-892.94,0.00021041,2]
[373237800,1752919883189,-781.22,0.00021041,2]
[373237801,1752919883199,-1122.99,0.00021041,2]
[373237802,1752919883208,-699.81,0.00021041,2]
[373237803,1752919883217,-480.0,0.00021041,2]
[373237804,1752919883227,-2398.3,0.00021041,2]
[373237805,1752919883236,-480.0,0.00021041,2]
[373237806,1752919883246,-1143.42,0.00021041,2]
[373237807,1752919883255,-852.18,0.00021041,2]
[373237808,1752919883265,-539.87,0.00021041,2]
[373237809,1752919883275,-1158.1,0.00021041,2]
[373237810,1752919883284,-480.0,0.00021041,2]
[373237811,1752919883294,-502.23,0.00021041,2]
[373237812,1752919883304,-500.0,0.00021057,2]
[373237813,1752919883313,-2525.0,0.00021057,2]
[373237814,1752919883323,-870.0,0.00021057,2]
[373237815,1752919883332,-540.0,0.00021057,2]
[373237816,1752919883342,-616.0,0.00021057,2]
[373237817,1752919883351,-616.0,0.00021057,2]
[373237818,1752919883361,-159.85538451,0.00021091,2]
[373237819,1752919883371,-159.68623185,0.00021091,2]
[373237820,1752919883381,-501.38409466,0.00021091,2]
[373237821,1752919883391,-500.0,0.00021091,2]
[373237822,1752919883401,-500.0,0.000211,2]
[373237823,1752919883411,-203.0,0.000211,2]
[373237824,1752919883420,-207.0,0.000211,2]
[373237825,1752919883430,-212.0,0.000211,2]
[373237826,1752919883440,-417.0,0.000211,2]
[373237827,1752919883450,-500.0,0.00021112,2]
[373237828,1752919883460,-500.0,0.00021116,2]
[373237829,1752919883470,-1000.0,0.00021124,2]
[373237830,1752919883480,-150.0,0.0002113,2]
[373237831,1752919883489,-150.0,0.0002113,2]
[373237832,1752919883500,-200.0,0.00021138,2]
[373237833,1752919883509,-518.65,0.0002115,2]
[373237834,1752919883520,-3225.72,0.0002115,2]
[373237835,1752919883530,-929.65,0.0002115,2]
[373237836,1752919883539,-546.84,0.0002115,2]
[373237837,1752919883550,-3351.16,0.0002115,2]
[373237838,1752919883559,-3462.2,0.0002115,2]
[373237839,1752919883569,-3220.57,0.0002115,2]
[373237840,1752919883579,-877.62,0.0002115,2]
[373237841,1752919883590,-522.59,0.0002115,2]
[373237842,1752919883600,-611.8,0.0002115,2]
[373237843,1752919883610,-992.53,0.0002115,2]
[373237844,1752919883620,-685.01,0.0002115,2]
[373237845,1752919883630,-588.9,0.0002115,2]
[373237846,1752919883639,-480.0,0.0002115,2]
[373237847,1752919883650,-2233.87,0.0002115,2]
[373237848,1752919883659,-851.61,0.0002115,2]
[373237849,1752919883669,-732.76,0.0002115,2]
[373237850,1752919883679,-718.81,0.0002115,2]
[373237851,1752919883689,-1358.36,0.0002115,2]
[373237852,1752919883699,-1477.64,0.0002115,2]
[373237853,1752919883709,-646.65,0.0002115,2]
[373237854,1752919883718,-480.0,0.0002115,2]
[373237855,1752919883728,-482.5,0.0002115,2]
[373237856,1752919883738,-1030.46,0.0002115,2]
[373237857,1752919883747,-602.24,0.0002115,2]
[373237858,1752919883757,-480.0,0.0002115,2]
[373237859,1752919883769,-480.0,0.0002115,2]
[373237860,1752919883778,-480.0,0.0002115,2]
[373237861,1752919883788,-658.15,0.0002115,2]
[373237862,1752919883797,-480.0,0.0002115,2]
[373237863,1752919883807,-480.0,0.0002115,2]
[373237864,1752919883817,-676.84,0.0002115,2]
[373237865,1752919883827,-480.0,0.0002115,2]
[373237866,1752919883840,-1120.43,0.0002115,2]
[373237867,1752919883850,-837.04,0.0002115,2]
[373237868,1752919883860,-1947.23,0.0002115,2]
[373237869,1752919883870,-1479.44,0.0002115,2]
[373237870,1752919883880,-1240.19,0.0002115,2]
[373237871,1752919883890,-1104.98,0.0002115,2]
[373237872,1752919883899,-1213.06,0.0002115,2]
[373237873,1752919883911,-1325.85,0.0002115,2]
[373237874,1752919883921,-480.0,0.0002115,2]
[373237875,1752919883930,-495.17,0.0002115,2]
[373237876,1752919883939,-602.67,0.0002115,2]
[373237877,1752919883948,-1656.17,0.0002115,2]
[373237878,1752919883958,-480.0,0.0002115,2]
[373237879,1752919883967,-2682.58,0.0002115,2]
[373237880,1752919883977,-955.39,0.0002115,2]
[373237881,1752919883986,-2820.87,0.0002115,2]
[373237882,1752919883996,-824.58,0.0002115,2]
[373237883,1752919884006,-1507.25,0.0002115,2]
[373237884,1752919884015,-1304.87,0.0002115,2]
[373237885,1752919884025,-1820.5,0.0002115,2]
[373237886,1752919884035,-1009.35,0.0002115,2]
[373237887,1752919884044,-1085.77,0.0002115,2]
[373237888,1752919884053,-677.53,0.0002115,2]
[373237889,1752919884063,-621.85,0.0002115,2]
[373237890,1752919884072,-578.45,0.0002115,2]
[373237891,1752919884081,-506.06,0.0002115,2]
[373237892,1752919884091,-1106.32,0.0002115,2]
[373237893,1752919884100,-1288.84,0.0002115,2]
[373237894,1752919884110,-505.94,0.0002115,2]
[373237895,1752919884119,-518.09,0.0002115,2]
[373237896,1752919884128,-1483.96,0.0002115,2]
[373237897,1752919884137,-430.45559455,0.0002115,2]
[373237898,1752919884147,-892.94,0.0002115,2]
[373237899,1752919884156,-781.22,0.0002115,2]
[373237900,1752919884165,-1122.99,0.0002115,2]
[373237901,1752919884175,-699.81,0.0002115,2]
[373237902,1752919884184,-480.0,0.0002115,2]
[373237903,1752919884198,-2398.3,0.0002115,2]
[373237904,1752919884207,-480.0,0.0002115,2]
[373237905,1752919884217,-1143.42,0.0002115,2]
[373237906,1752919884227,-852.18,0.0002115,2]
[373237907,1752919884236,-539.87,0.0002115,2]
[373237908,1752919884246,-1158.1,0.0002115,2]
[373237909,1752919884256,-480.0,0.0002115,2]
[373237910,1752919884266,-502.23,0.0002115,2]
[373237911,1752919884276,-1000.0,0.0002117,2]
[373237912,1752919884286,-2470.24,0.00021192,2]
[373237913,1752919884296,-600.0,0.00021206,2]
[373237914,1752919884305,-152.0,0.0002123,6]
[373237915,1752919884315,-150.0,0.00021244,2]
[373237916,1752919884324,-1000.0,0.00021258,2]
[373237917,1752919884333,-518.65,0.0002126,2]
[373237918,1752919884343,-3225.72,0.0002126,2]
[373237919,1752919884354,-546.84,0.0002126,2]
[373237920,1752919884364,-929.65,0.0002126,2]
[373237921,1752919884374,-3351.16,0.0002126,2]
[373237922,1752919884383,-3462.2,0.0002126,2]
[373237923,1752919884392,-3220.57,0.0002126,2]
[373237924,1752919884402,-877.62,0.0002126,2]
[373237925,1752919884412,-522.59,0.0002126,2]
[373237926,1752919884421,-611.8,0.0002126,2]
[373237927,1752919884431,-992.53,0.0002126,2]
[373237928,1752919884441,-685.01,0.0002126,2]
[373237929,1752919884451,-588.9,0.0002126,2]
[373237930,1752919884460,-480.0,0.0002126,2]
[373237931,1752919884470,-2233.87,0.0002126,2]
[373237932,1752919884480,-851.61,0.0002126,2]
[373237933,1752919884490,-732.76,0.0002126,2]
[373237934,1752919884499,-718.81,0.0002126,2]
[373237935,1752919884509,-1358.36,0.0002126,2]
[373237936,1752919884519,-1477.64,0.0002126,2]
[373237937,1752919884528,-646.65,0.0002126,2]
[373237938,1752919884539,-480.0,0.0002126,2]
[373237939,1752919884548,-482.5,0.0002126,2]
[373237940,1752919884558,-1030.46,0.0002126,2]
[373237941,1752919884568,-602.24,0.0002126,2]
[373237942,1752919884577,-480.0,0.0002126,2]
[373237943,1752919884586,-480.0,0.0002126,2]
[373237944,1752919884596,-480.0,0.0002126,2]
[373237945,1752919884606,-658.15,0.0002126,2]
[373237946,1752919884615,-212.48569788,0.0002126,2]
[373237947,1752919884625,-480.0,0.0002126,2]
[373237948,1752919884635,-676.84,0.0002126,2]
[373237949,1752919884645,-480.0,0.0002126,2]
[373237950,1752919884655,-1120.43,0.0002126,2]
[373237951,1752919884664,-837.04,0.0002126,2]
[373237952,1752919884675,-1947.23,0.0002126,2]
[373237953,1752919884685,-1479.44,0.0002126,2]
[373237954,1752919884695,-1240.19,0.0002126,2]
[373237955,1752919884704,-1213.06,0.0002126,2]
[373237956,1752919884713,-1104.98,0.0002126,2]
[373237957,1752919884723,-1325.85,0.0002126,2]
[373237958,1752919884733,-528.32493541,0.0002126,2]
[373237959,1752919884750,-495.17,0.0002126,2]
[373237960,1752919884763,-602.67,0.0002126,2]
[373237961,1752919884773,-1656.17,0.0002126,2]
[373237962,1752919884782,-286.32978918,0.0002126,2]
[373237963,1752919884792,-2682.58,0.0002126,2]
[373237964,1752919884801,-955.39,0.0002126,2]
[373237965,1752919884811,-2820.87,0.0002126,2]
[373237966,1752919884820,-824.58,0.0002126,2]
[373237967,1752919884829,-1507.25,0.0002126,2]
[373237968,1752919884843,-1304.87,0.0002126,2]
[373237969,1752919884852,-1820.5,0.0002126,2]
[373237970,1752919884863,-1009.35,0.0002126,2]
[373237971,1752919884872,-1085.77,0.0002126,2]
[373237972,1752919884882,-677.53,0.0002126,2]
[373237973,1752919884892,-621.85,0.0002126,2]
[373237974,1752919884902,-578.45,0.0002126,2]
[373237975,1752919884913,-506.06,0.0002126,2]
[373237976,1752919884924,-1106.32,0.0002126,2]
[373237977,1752919884934,-1288.84,0.0002126,2]
[373237978,1752919884943,-505.94,0.0002126,2]
[373237979,1752919884953,-518.09,0.0002126,2]
[373237980,1752919884963,-1483.96,0.0002126,2]
[373237981,1752919884972,-892.94,0.0002126,2]
[373237982,1752919884981,-781.22,0.0002126,2]
[373237983,1752919884991,-1122.99,0.0002126,2]
[373237984,1752919885000,-699.81,0.0002126,2]
[373237985,1752919885009,-480.0,0.0002126,2]
[373237986,1752919885021,-2398.3,0.0002126,2]
[373237987,1752919885030,-480.0,0.0002126,2]
[373237988,1752919885039,-1143.42,0.0002126,2]
[373237989,1752919885048,-852.18,0.0002126,2]
[373237990,1752919885056,-539.87,0.0002126,2]
[373237991,1752919885066,-1158.1,0.0002126,2]
[373237992,1752919885075,-480.0,0.0002126,2]
[373237993,1752919885084,-502.23,0.0002126,2]
[373237994,1752919885094,-205.7300871,0.00021269,2]
[373237995,1752919885103,-1479.0,0.00021276,2]
[373237996,1752919885112,-1000.0,0.0002129,2]
[373237997,1752919885121,-174.563,0.00021294,2]
[373237998,1752919885130,-2091.636,0.00021294,2]
[373237999,1752919885139,-47731.8484655,0.00021318,2]
[373238000,1752919885148,-500.0,0.00021331,2]
[373238001,1752919885158,-2525.0,0.00021331,2]
[373238002,1752919885167,-870.0,0.00021331,2]
[373238003,1752919885177,-648.0,0.00021331,2]
[373238004,1752919885187,-616.0,0.00021331,2]
[373238005,1752919885196,-616.0,0.00021331,2]
[373238006,1752919885206,-177.54,0.00021331,2]
[373238007,1752919885215,-300.0,0.00021332,2]
[373238008,1752919885226,-199728.68982977,0.00021333,2]
[373238009,1752919885236,-151.0,0.00021333,2]
[373238010,1752919885245,-1000.0,0.00021335,2]
[373238011,1752919885255,-176.02,0.00021337,2]
[373238012,1752919885266,-203.0,0.0002134,2]
[373238013,1752919885276,-207.0,0.0002134,2]
[373238014,1752919885285,-212.0,0.0002134,2]
[373238015,1752919885295,-168.28,0.00021344,2]
[373238016,1752919885305,-1126.02765,0.0002135,2]
[373238017,1752919885315,-500.0,0.00021356,2]
[373238018,1752919885325,-1200.0,0.00021356,2]
[373238019,1752919885334,-298.374402,0.00021369,2]
[373238020,1752919885404,-298.374402,0.00021369,2]
[373238021,1752919885414,-518.65,0.00021369,2]
[373238022,1752919885424,-3225.72,0.00021369,2]
[373238023,1752919885434,-546.84,0.00021369,2]
[373238024,1752919885443,-929.65,0.00021369,2]
[373238025,1752919885453,-3351.16,0.00021369,2]
[373238026,1752919885463,-3462.2,0.00021369,2]
[373238027,1752919885473,-3220.57,0.00021369,2]
[373238028,1752919885482,-877.62,0.00021369,2]
[373238029,1752919885492,-522.59,0.00021369,2]
[373238030,1752919885501,-611.8,0.00021369,2]
[373238031,1752919885510,-685.01,0.00021369,2]
[373238032,1752919885521,-992.53,0.00021369,2]
[373238033,1752919885531,-588.9,0.00021369,2]
[373238034,1752919885540,-480.0,0.00021369,2]